bitfinex/quotes_SOLUSD_20240620
["timestamp","ask_amount","ask_price","bid_price","bid_amount"]
[1718891793484,15.0566,135.36,135.28,67.17]
[1718891793694,15.0566,135.36,135.3,7.3907]
[1718891794886,15.0566,135.36,135.29,18.4787]
[1718891795085,5.83975817,135.39,135.32,7.3895]
[1718891795290,15.8574,135.4,135.27,40.6515]
[1718891795497,15.8574,135.4,135.28,65.0]
[1718891795908,15.8574,135.4,135.3,7.3907]
[1718891796096,15.8574,135.4,135.28,8.91751227]
[1718891796412,15.8143,135.38,135.23,27.40331227]
[1718891796581,15.8143,135.38,135.25,7.3934]
[1718891796782,45.0,135.37,135.25,7.3934]
[1718891797512,45.0,135.37,135.21,59.1473]
[1718891797513,16.6296,135.36,135.24,7.394]
[1718891797702,45.0,135.35,135.24,7.394]
[1718891798203,45.0,135.35,135.19,22.17]
[1718891798204,16.6296,135.34,135.19,22.17]
[1718891798385,36.6296,135.34,135.22,7.3951]
[1718891798587,16.6296,135.34,135.22,40.6581]
[1718891798786,16.6296,135.34,135.26,7.3929]
[1718891799389,16.6296,135.34,135.28,7.3919]
[1718891799589,16.6296,135.34,135.3,7.3906]
[1718891799914,16.6296,135.34,135.23,49.57311227]
[1718891800098,16.6296,135.34,135.27,7.3921]
[1718891800299,16.6296,135.34,135.28,7.3919]
[1718891800491,16.6296,135.34,135.29,7.3913]
[1718891800906,16.6296,135.34,135.3,7.3907]
[1718891801208,16.6296,135.34,135.29,7.3913]
[1718891801508,16.6296,135.34,135.3,7.3908]
[1718891802409,16.6296,135.34,135.29,7.3913]
[1718891802623,16.6296,135.34,135.3,7.3909]
[1718891803314,16.6296,135.34,135.28,7.3915]
[1718891803495,16.6296,135.34,135.29,7.3913]
[1718891804395,16.6296,135.34,135.28,7.3915]
[1718891804796,16.6296,135.34,135.29,7.3912]
[1718891806905,16.6296,135.34,135.3,7.3905]
[1718891807328,16.6296,135.34,135.27,18.4805]
[1718891807616,16.6296,135.34,135.31,7.39]
[1718891807809,15.8596,135.37,135.3,7.3907]
[1718891808311,15.8596,135.37,135.28,7.3918]
[1718891808521,15.8596,135.37,135.31,7.3904]
[1718891808728,15.8596,135.37,135.25,22.17]
[1718891808729,15.8596,135.37,135.27,18.4802]
[1718891808920,15.8596,135.37,135.29,7.3909]
[1718891809515,15.8596,135.37,135.29,18.4783]
[1718891810018,15.8596,135.37,135.33,7.389]
[1718891810236,15.8596,135.37,135.34,7.3883]
[1718891810742,13.27311357,135.41,135.34,7.3883]
[1718891810743,28.58171357,135.41,135.34,7.3883]
[1718891811212,22.83375238,135.41,135.33,22.17]
[1718891811523,22.83375238,135.41,135.32,6.0369]
[1718891811524,15.2736,135.45,135.34,67.17]
[1718891811835,15.2736,135.45,135.4,7.3853]
[1718891812036,15.2736,135.45,135.39,7.3858]
[1718891812210,15.2736,135.45,135.36,18.4679]
[1718891812412,15.2736,135.45,135.36,40.6379]
[1718891812612,15.2736,135.45,135.38,18.4664]
[1718891812812,15.2736,135.45,135.39,7.3858]
[1718891813924,15.2736,135.45,135.38,7.3863]
[1718891814129,15.2736,135.45,135.39,7.386]
[1718891814933,15.2736,135.45,135.38,7.3865]
[1718891815321,15.2736,135.45,135.37,7.3869]
[1718891815723,15.2736,135.45,135.36,7.3875]
[1718891815911,15.2736,135.45,135.37,7.387]
[1718891816322,15.2736,135.45,135.36,7.3875]
[1718891816539,15.2736,135.45,135.32,6.0369]
[1718891816740,15.2736,135.45,135.33,7.3893]
[1718891817041,45.0,135.44,135.34,7.3887]
[1718891817215,45.0,135.44,135.3,33.9437]
[1718891817416,45.0,135.44,135.3,18.4763]
[1718891817612,45.0,135.44,135.32,7.3895]
[1718891817840,45.0,135.44,135.33,7.3893]
[1718891818015,45.0,135.44,135.32,18.4746]
[1718891818016,46.71392066,135.44,135.32,18.4746]
[1718891818223,46.71392066,135.44,135.34,7.3886]
[1718891818619,46.71392066,135.44,135.29,18.4782]
[1718891818938,15.4334,135.43,135.28,6.2966]
[1718891819240,45.0,135.42,135.31,7.3901]
[1718891819441,45.0,135.42,135.3,7.3907]
[1718891819624,45.0,135.42,135.28,6.2966]
[1718891819820,45.0,135.42,135.29,7.3912]
[1718891820348,30.0,135.4,135.28,7.3919]
[1718891820640,45.0,135.39,135.29,7.3913]
[1718891820945,45.0,135.39,135.27,7.3921]
[1718891820946,16.2066,135.38,135.27,7.3921]
[1718891821236,45.0,135.37,135.28,7.3917]
[1718891821537,45.0,135.37,135.25,18.4832]
[1718891821722,45.0,135.37,135.29,7.3914]
[1718891822033,45.0,135.37,135.25,18.4832]
[1718891822034,16.2066,135.38,135.3,7.3909]
[1718891822424,16.2066,135.38,135.29,7.3912]
[1718891822832,16.2066,135.38,135.31,7.3901]
[1718891823137,16.2066,135.38,135.32,7.3898]
[1718891823518,16.2066,135.38,135.28,18.4789]
[1718891823724,16.2066,135.38,135.26,18.4827]
[1718891823931,45.0,135.37,135.27,7.3925]
[1718891824323,45.0,135.37,135.25,18.4832]
[1718891824521,16.2066,135.38,135.28,7.3919]
[1718891824728,45.0,135.37,135.25,18.4832]
[1718891824933,45.0,135.37,135.29,7.3914]
[1718891825252,16.2066,135.38,135.26,18.4817]
[1718891825420,16.2066,135.38,135.29,7.3911]
[1718891826344,16.2066,135.38,135.24,22.17]
[1718891826524,16.2066,135.38,135.25,87.17]
[1718891826729,16.2066,135.38,135.3,7.3907]
[1718891826944,16.2066,135.38,135.29,7.3913]
[1718891827239,16.2066,135.38,135.28,7.3919]
[1718891827544,16.2066,135.38,135.3,7.3909]
[1718891827753,16.2066,135.38,135.31,7.3904]
[1718891827929,16.2066,135.38,135.3,7.3907]
[1718891828250,16.2066,135.38,135.27,7.3925]
[1718891828439,45.0,135.37,135.27,7.3925]
[1718891829453,45.0,135.37,135.25,38.4831]
[1718891829751,45.0,135.37,135.27,7.3925]
[1718891829941,45.0,135.37,135.28,7.3919]
[1718891830457,45.0,135.37,135.26,7.3928]
[1718891830627,46.6577,135.36,135.25,7.3933]
[1718891830955,45.0,135.35,135.25,7.3933]
[1718891831250,45.0,135.35,135.22,18.4883]
[1718891831728,30.0,135.34,135.23,19.60022084]
[1718891831928,30.0,135.34,135.26,7.3929]
[1718891834156,30.0,135.32,135.19,18.4923]
[1718891834451,45.0,135.31,135.19,18.4923]
[1718891834659,30.0,135.32,135.2,18.4901]
[1718891834948,30.0,135.32,135.22,7.395]
[1718891835141,45.0,135.31,135.22,7.395]
[1718891835350,45.0,135.31,135.2,18.4901]
[1718891835521,45.0,135.31,135.2,7.3961]
[1718891835725,45.0,135.31,135.18,24.6271]
[1718891835726,45.0,135.31,135.21,7.3958]
[1718891836640,45.0,135.31,135.19,18.4912]
[1718891836847,45.0,135.31,135.23,7.3944]
[1718891838845,30.0,135.32,135.28,7.3917]
[1718891839020,15.0925,135.33,135.21,22.17]
[1718891839226,15.0925,135.33,135.23,22.17]
[1718891839426,15.0925,135.33,135.26,18.4818]
[1718891839623,15.0925,135.33,135.27,7.3922]
[1718891839854,15.0925,135.33,135.26,18.4818]
[1718891840232,15.0925,135.33,135.29,7.3913]
[1718891843648,15.0925,135.33,135.23,22.17]
[1718891843857,15.0925,135.33,135.26,7.3928]
[1718891844035,15.0925,135.33,135.24,65.0]
[1718891844242,15.0925,135.33,135.24,20.0]
[1718891844437,15.0925,135.33,135.22,15.3157]
[1718891844741,15.0925,135.33,135.21,18.4884]
[1718891844940,15.0925,135.33,135.22,20.0]
[1718891845542,15.0925,135.33,135.27,7.3924]
[1718891845932,15.0925,135.33,135.28,7.392]
[1718891846137,15.0925,135.33,135.25,22.17]
[1718891846338,15.0925,135.33,135.28,7.3918]
[1718891847751,16.1322,135.37,135.31,7.3902]
[1718891847957,16.1322,135.37,135.29,7.3911]
[1718891848852,16.1322,135.37,135.27,7.3924]
[1718891849030,16.1322,135.37,135.26,7.3926]
[1718891849238,45.0,135.36,135.24,18.4853]
[1718891849436,45.0,135.36,135.25,7.3933]
[1718891849653,45.0,135.36,135.24,18.4853]
[1718891850143,45.0,135.36,135.25,7.3933]
[1718891850144,52.51870577,135.36,135.25,7.3933]
[1718891850338,52.51870577,135.36,135.22,42.17]
[1718891850339,15.7048,135.35,135.24,7.3939]
[1718891850561,15.7048,135.35,135.26,7.3928]
[1718891850861,15.7048,135.35,135.27,7.3925]
[1718891851438,15.7048,135.35,135.28,7.3917]
[1718891851859,15.7048,135.35,135.27,7.3924]
[1718891852464,15.7048,135.35,135.21,33.6437]
[1718891852465,15.7048,135.35,135.25,40.653]
[1718891852642,15.7048,135.35,135.28,7.3918]
[1718891852958,15.7048,135.35,135.25,40.653]
[1718891852959,15.7048,135.35,135.27,7.3923]
[1718891853168,15.7048,135.35,135.28,7.3916]
[1718891853338,15.7048,135.35,135.27,7.3923]
[1718891853938,15.7048,135.35,135.26,7.3927]
[1718891854146,15.7048,135.35,135.19,28.53651972]
[1718891854352,45.0,135.34,135.22,7.3949]
[1718891854746,16.2178,135.33,135.2,20.0]
[1718891854955,16.2178,135.33,135.23,7.3944]
[1718891856057,16.2178,135.33,135.22,7.3951]
[1718891856449,16.2178,135.33,135.25,7.3936]
[1718891857389,16.2178,135.33,135.21,40.6584]
[1718891857541,16.2178,135.33,135.21,18.4884]
[1718891857952,16.2178,135.33,135.23,7.3944]
[1718891858350,16.2178,135.33,135.24,7.3942]
[1718891858553,16.2178,135.33,135.25,7.3934]
[1718891859353,16.2178,135.33,135.23,18.4858]
[1718891859354,16.2178,135.33,135.26,7.393]
[1718891860645,16.2178,135.33,135.27,7.3925]
[1718891861471,16.2178,135.33,135.26,7.3928]
[1718891862573,16.2178,135.33,135.27,7.3925]
[1718891862981,16.2178,135.33,135.25,40.6542]
[1718891863168,16.2178,135.33,135.27,7.3924]
[1718891863367,16.2178,135.33,135.26,7.3931]
[1718891863559,16.2178,135.33,135.25,7.3935]
[1718891864151,16.2178,135.33,135.25,40.6542]
[1718891864377,16.2178,135.33,135.26,18.4817]
[1718891864573,16.2178,135.33,135.28,7.3919]
[1718891864960,16.2178,135.33,135.25,22.17]
[1718891865170,16.2178,135.33,135.26,7.3928]
[1718891865374,16.2178,135.33,135.23,22.17]
[1718891865776,16.2178,135.33,135.26,7.3931]
[1718891866474,16.2178,135.33,135.23,40.6558]
[1718891866776,16.2178,135.33,135.27,7.3925]
[1718891868255,16.2178,135.33,135.23,18.4858]
[1718891868454,16.2178,135.33,135.23,7.3946]
[1718891868669,16.2178,135.33,135.23,7.3945]
[1718891868978,16.2178,135.33,135.22,7.3952]
[1718891869158,16.2178,135.33,135.22,7.395]
[1718891869352,45.0,135.32,135.23,7.3947]
[1718891869771,43.8078,135.33,135.2,20.0]
[1718891869971,43.8078,135.33,135.23,7.3944]
[1718891870171,43.8078,135.33,135.24,7.3941]
[1718891870569,43.8078,135.33,135.2,38.4899]
[1718891870570,45.0,135.32,135.2,38.4899]
[1718891870879,45.0,135.32,135.22,7.3951]
[1718891871083,45.0,135.32,135.23,7.3947]
[1718891871588,45.0,135.32,135.22,7.395]
[1718891871775,45.0,135.32,135.23,7.3947]
[1718891871969,45.0,135.32,135.22,7.395]
[1718891872171,43.8078,135.33,135.23,7.3943]
[1718891873978,43.8078,135.33,135.2,60.6599]
[1718891874166,43.8078,135.33,135.23,7.3945]
[1718891874779,43.8078,135.33,135.24,7.3941]
[1718891875477,43.8078,135.33,135.21,45.0]
[1718891875679,43.8078,135.33,135.23,7.3945]
[1718891875875,16.2178,135.33,135.23,7.3945]
[1718891876265,16.2178,135.33,135.24,7.3942]
[1718891876466,16.2178,135.33,135.23,7.3945]
[1718891876965,16.2178,135.33,135.22,22.17]
[1718891877282,16.2178,135.33,135.24,7.394]
[1718891877458,16.2178,135.33,135.25,7.3936]
[1718891879182,16.2178,135.33,135.23,40.6558]
[1718891879387,16.2178,135.33,135.23,18.4858]
[1718891879565,16.2178,135.33,135.27,7.3922]
[1718891879768,16.2178,135.33,135.28,7.3919]
[1718891880074,16.2178,135.33,135.24,63.4847]
[1718891880276,16.2178,135.33,135.27,7.3923]
[1718891880470,16.2178,135.33,135.26,7.3929]
[1718891880678,16.2178,135.33,135.27,7.3925]
[1718891881293,7.3901,135.32,135.27,7.3925]
[1718891881889,7.3904,135.31,135.27,7.3925]
[1718891882099,23.6074,135.33,135.24,40.6547]
[1718891882271,23.6074,135.33,135.28,7.3917]
[1718891882797,7.3898,135.32,135.28,7.3917]
[1718891883272,7.3905,135.31,135.27,7.3924]
[1718891883472,23.6076,135.33,135.28,7.3919]
[1718891884096,23.6076,135.33,135.28,7.3917]
[1718891884286,23.6076,135.33,135.29,7.3914]
[1718891885081,16.2178,135.33,135.29,7.3914]
[1718891885284,7.3885,135.35,135.3,7.3908]
[1718891886090,7.3879,135.36,135.31,7.39]
[1718891886292,35.0486,135.37,135.28,22.17]
[1718891886293,23.9677,135.37,135.28,22.17]
[1718891886476,23.9677,135.37,135.29,87.17]
[1718891886685,268.5646,135.42,135.31,22.17]
[1718891886908,7.3865,135.39,135.34,7.3886]
[1718891887198,15.1646,135.42,135.35,7.3881]
[1718891887199,7.3859,135.4,135.35,7.3881]
[1718891887383,7.3859,135.4,135.33,18.4732]
[1718891887384,7.3859,135.4,135.36,7.3875]
[1718891887583,15.1646,135.42,135.36,7.3875]
[1718891887785,7.3855,135.4,135.35,7.3879]
[1718891888197,7.3855,135.4,135.36,7.3876]
[1718891888402,7.3861,135.39,135.33,6.1898]
[1718891888613,33.6257,135.42,135.33,6.1898]
[1718891888997,7.3856,135.4,135.33,6.1898]
[1718891889887,15.1646,135.42,135.34,40.6416]
[1718891890084,27.59,135.46,135.35,67.17]
[1718891890085,7.384,135.43,135.35,67.17]
[1718891890502,7.384,135.43,135.38,7.3863]
[1718891890893,7.384,135.43,135.35,85.6395]
[1718891891097,7.384,135.43,135.38,7.3863]
[1718891891886,7.3844,135.42,135.37,7.3869]
[1718891892282,16.0097,135.45,135.35,7.388]
[1718891892283,43.5597,135.45,135.35,7.388]
[1718891892714,7.3857,135.4,135.35,7.388]
[1718891893989,36.9195,135.43,135.3,28.2128]
[1718891894192,7.3878,135.36,135.31,27.3899]
[1718891894492,7.3873,135.37,135.32,7.3898]
[1718891895099,7.3879,135.36,135.31,27.3902]
[1718891895307,18.4683,135.37,135.29,7.3912]
[1718891895513,7.389,135.34,135.29,7.3912]
[1718891895809,7.3883,135.35,135.3,7.3908]
[1718891896005,15.484,135.39,135.27,6.4562]
[1718891896205,7.3909,135.31,135.26,7.3928]
[1718891896409,45.0,135.38,135.26,7.3927]
[1718891896410,7.3904,135.32,135.26,7.3927]
[1718891896618,7.3904,135.32,135.27,7.3924]
[1718891896797,7.3895,135.33,135.24,15.9259]
[1718891896997,7.3884,135.35,135.3,7.3909]
[1718891898006,21.49172587,135.39,135.28,18.4801]
[1718891898309,7.388,135.36,135.31,7.3901]
[1718891898609,7.3882,135.35,135.3,7.3907]
[1718891898780,18.4677,135.38,135.29,7.3913]
[1718891898985,7.3893,135.33,135.28,7.3918]
[1718891899203,7.389,135.34,135.29,7.3914]
[1718891899520,7.3894,135.33,135.28,7.3918]
[1718891899688,7.3894,135.33,135.29,7.3914]
[1718891899990,7.3872,135.37,135.32,7.3895]
[1718891900190,7.3877,135.36,135.32,7.3895]
[1718891900392,7.3877,135.36,135.28,40.65]
[1718891900393,15.484,135.39,135.33,7.3892]
[1718891900699,7.3876,135.37,135.31,7.3899]
[1718891900892,15.484,135.39,135.31,7.3899]
[1718891901091,7.3879,135.36,135.31,7.3899]
[1718891901500,18.469,135.37,135.29,7.3915]
[1718891901811,18.4716,135.35,135.26,7.393]
[1718891902017,7.3908,135.31,135.26,7.393]
[1718891902304,7.3914,135.3,135.26,7.393]
[1718891902492,7.3906,135.31,135.26,7.393]
[1718891902694,7.3917,135.29,135.24,7.394]
[1718891902891,7.3917,135.29,135.25,7.3936]
[1718891903093,34.6828,135.32,135.23,6.0369]
[1718891903302,7.3913,135.3,135.25,7.3934]
[1718891903811,34.6828,135.32,135.24,7.3941]
[1718891903812,7.3915,135.29,135.24,7.3941]
[1718891904195,7.3911,135.3,135.25,7.3935]
[1718891904591,7.3906,135.31,135.26,7.3929]
[1718891905010,7.391,135.3,135.25,7.3936]
[1718891905214,7.3906,135.31,135.26,7.3928]
[1718891906017,7.391,135.3,135.25,7.3934]
[1718891906314,7.391,135.3,135.23,28.2069]
[1718891906616,7.391,135.3,135.24,45.0]
[1718891906998,16.3494,135.35,135.28,7.3916]
[1718891907401,7.3895,135.33,135.28,7.3916]
[1718891907999,7.3894,135.33,135.29,7.3913]
[1718891908202,16.0491,135.38,135.3,7.3908]
[1718891908507,16.0491,135.38,135.25,27.55]
[1718891908508,7.3879,135.36,135.32,7.3898]
[1718891908707,7.3879,135.36,135.28,37.9586]
[1718891908708,7.3883,135.35,135.3,6.2983]
[1718891908921,7.3883,135.35,135.3,13.6888]
[1718891909219,7.3878,135.36,135.31,7.3903]
[1718891909417,16.0491,135.38,135.31,7.3903]
[1718891910104,7.3882,135.35,135.3,6.2983]
[1718891910407,16.0491,135.38,135.3,6.2983]
[1718891910408,7.39,135.32,135.3,6.2983]
[1718891910614,7.3896,135.33,135.28,23.1803]
[1718891910998,7.3912,135.3,135.25,23.3008]
[1718891911315,7.3912,135.3,135.25,15.9075]
[1718891911916,7.3899,135.32,135.25,38.0775]
[1718891912305,7.3909,135.31,135.25,15.9075]
[1718891912618,7.3902,135.32,135.25,15.9075]
[1718891912794,7.3895,135.33,135.25,15.9075]
[1718891912992,7.3899,135.32,135.28,7.3917]
[1718891913210,7.3899,135.32,135.25,15.9075]
[1718891913420,7.39,135.32,135.28,7.392]
[1718891913599,18.4717,135.35,135.27,7.3924]
[1718891913600,7.3905,135.31,135.27,7.3924]
[1718891913797,7.3901,135.32,135.27,7.3924]
[1718891914116,7.3901,135.32,135.28,7.3919]
[1718891914993,7.3906,135.31,135.27,7.3925]
[1718891915213,36.937,135.37,135.26,7.3929]
[1718891915214,7.3911,135.3,135.26,7.3929]
[1718891915519,7.391,135.3,135.25,23.3007]
[1718891916012,7.3905,135.31,135.27,7.3924]
[1718891916403,7.3905,135.31,135.26,7.3928]
[1718891916998,7.3905,135.31,135.25,15.9075]
[1718891917199,7.3905,135.31,135.26,7.3928]
[1718891917631,7.3911,135.3,135.26,7.3928]
[1718891917915,7.3916,135.29,135.25,15.9075]
[1718891918102,18.4758,135.32,135.25,15.9075]
[1718891918297,7.3912,135.3,135.26,7.393]
[1718891918921,7.3906,135.31,135.26,7.393]
[1718891919119,7.391,135.3,135.26,7.393]
[1718891919325,7.391,135.3,135.25,15.9075]
[1718891919500,7.391,135.3,135.25,23.3009]
[1718891919822,7.391,135.3,135.26,7.393]
[1718891920209,7.3906,135.31,135.26,7.393]
[1718891920398,7.39,135.32,135.27,7.3923]
[1718891920606,7.3894,135.33,135.28,7.3919]
[1718891921012,7.3896,135.33,135.28,7.3919]
[1718891922113,18.4694,135.36,135.27,7.3924]
[1718891922317,18.4719,135.35,135.27,7.3924]
[1718891922521,7.3907,135.31,135.26,74.5629]
[1718891923013,7.3913,135.3,135.25,23.3008]
[1718891923318,7.3913,135.3,135.26,7.3929]
[1718891923701,7.3913,135.3,135.25,23.301]
[1718891924211,7.3913,135.3,135.26,7.393]
[1718891924407,7.3906,135.31,135.26,7.393]
[1718891925705,7.3912,135.3,135.26,7.393]
[1718891925906,7.3912,135.3,135.25,15.9075]
[1718891925907,7.3906,135.31,135.27,7.3925]
[1718891926121,7.3906,135.31,135.26,7.3929]
[1718891926311,7.3906,135.31,135.27,7.3926]
[1718891927531,7.391,135.3,135.26,7.3931]
[1718891929625,7.3905,135.31,135.26,7.3931]
[1718891929820,7.3905,135.31,135.27,7.3925]
[1718891930906,7.3905,135.31,135.26,7.3929]
[1718891931127,7.3911,135.3,135.26,7.3929]
[1718891931347,7.3905,135.31,135.26,7.3929]
[1718891931529,7.3905,135.31,135.27,7.3926]
[1718891932549,7.3905,135.31,135.26,7.3928]
[1718891933453,7.3905,135.31,135.26,16.5928]
[1718891933761,9.2,135.32,135.26,16.5928]
[1718891933931,7.3911,135.3,135.26,16.5928]
[1718891934433,7.3907,135.31,135.26,16.5928]
[1718891934760,5.88734588,135.35,135.24,28.4174]
[1718891934761,7.3937,135.25,135.24,6.2474]
[1718891935052,7.3928,135.27,135.24,6.2474]
[1718891935224,7.3918,135.29,135.24,15.4474]
[1718891935427,9.2,135.31,135.25,16.5932]
[1718891935626,15.5692,135.32,135.26,7.393]
[1718891935857,7.3916,135.29,135.25,7.3934]
[1718891936057,7.3916,135.29,135.25,16.5934]
[1718891936227,9.2,135.31,135.25,16.5934]
[1718891937041,7.3929,135.27,135.24,6.2474]
[1718891937352,7.3922,135.28,135.24,22.8414]
[1718891938428,7.3912,135.3,135.25,16.5935]
[1718891938641,7.3912,135.3,135.25,7.3935]
[1718891938956,7.3912,135.3,135.25,16.5935]
[1718891939156,7.3915,135.29,135.24,6.2474]
[1718891939347,7.3915,135.29,135.25,9.2]
[1718891939654,7.392,135.29,135.25,9.2]
[1718891940247,7.3921,135.28,135.24,13.6416]
[1718891940451,7.3921,135.28,135.24,22.8416]
[1718891940662,7.3926,135.27,135.24,15.4474]
[1718891940853,27.6774,135.3,135.24,6.2474]
[1718891941032,9.2,135.29,135.21,22.7326]
[1718891941355,15.5692,135.32,135.21,39.3284]
[1718891941356,9.2,135.27,135.21,39.3284]
[1718891941536,7.3934,135.26,135.21,39.3284]
[1718891941860,7.3928,135.27,135.22,16.5953]
[1718891942457,7.3928,135.27,135.23,7.3946]
[1718891942841,15.5692,135.32,135.25,7.3935]
[1718891943036,15.5692,135.32,135.24,16.5939]
[1718891943228,7.3922,135.28,135.24,9.2]
[1718891944041,7.3931,135.27,135.23,9.2]
[1718891944240,18.4785,135.3,135.23,9.2]
[1718891944241,9.2,135.29,135.23,9.2]
[1718891944550,15.5692,135.32,135.21,22.7326]
[1718891944551,9.2,135.27,135.21,22.7326]
[1718891944951,7.3939,135.25,135.21,22.7326]
[1718891945332,7.3939,135.25,135.21,31.9326]
[1718891947053,7.3943,135.24,135.21,31.9326]
[1718891947352,7.3943,135.24,135.21,22.7326]
[1718891948139,7.3938,135.25,135.21,22.7326]
[1718891948349,89.4795515,135.31,135.17,28.3418]
[1718891948552,7.3931,135.26,135.21,7.3956]
[1718891948763,27.62,135.3,135.17,6.1118]
[1718891948959,7.3933,135.26,135.17,6.1118]
[1718891949131,18.479,135.29,135.22,7.395]
[1718891949333,18.479,135.29,135.17,6.1118]
[1718891949334,18.479,135.29,135.21,7.3957]
[1718891949646,7.3942,135.25,135.2,7.3964]
[1718891949857,7.3944,135.24,135.17,6.1118]
[1718891950058,7.3939,135.25,135.2,7.3961]
[1718891950437,7.3943,135.24,135.2,7.3961]
[1718891950658,7.3939,135.25,135.2,7.3961]
[1718891950963,7.3939,135.25,135.21,7.3958]
[1718891951135,7.3939,135.25,135.2,7.3962]
[1718891951540,7.3939,135.25,135.21,7.3958]
[1718891951750,7.3922,135.28,135.18,67.23]
[1718891951965,7.3922,135.28,135.23,7.3944]
[1718891952641,15.5692,135.32,135.22,15.8628]
[1718891952846,7.3944,135.24,135.19,23.2593]
[1718891953461,7.3939,135.25,135.2,7.3961]
[1718891953863,7.3942,135.24,135.2,7.3961]
[1718891954248,7.3942,135.24,135.19,23.2595]
[1718891954445,7.395,135.23,135.19,15.8628]
[1718891954768,7.3949,135.23,135.19,15.8628]
[1718891954953,18.4839,135.26,135.18,7.3972]
[1718891954954,7.3955,135.22,135.18,7.3972]
[1718891955150,18.4839,135.26,135.17,6.1118]
[1718891955151,15.461,135.26,135.17,6.1118]
[1718891955451,27.62,135.24,135.14,6.3978]
[1718891955649,7.3974,135.19,135.14,13.7974]
[1718891955963,7.3974,135.19,135.15,7.399]
[1718891956162,18.4871,135.23,135.14,6.3978]
[1718891956463,45.0,135.25,135.18,7.3973]
[1718891956464,18.4843,135.25,135.18,7.3973]
[1718891956663,15.461,135.26,135.19,7.3964]
[1718891956854,7.3956,135.22,135.14,28.6278]
[1718891957042,39.79232825,135.26,135.14,28.6278]
[1718891957043,7.3962,135.21,135.16,7.3983]
[1718891957248,7.3973,135.19,135.14,13.7971]
[1718891957569,7.3976,135.18,135.14,13.7974]
[1718891957761,7.3972,135.19,135.14,13.7974]
[1718891958061,7.3973,135.19,135.14,13.7974]
[1718891958663,7.3977,135.18,135.14,6.3978]
[1718891958858,7.3977,135.18,135.14,13.7973]
[1718891959558,7.3972,135.19,135.14,13.7973]
[1718891959759,27.62,135.24,135.14,13.7973]
[1718891959760,18.4872,135.23,135.16,7.3984]
[1718891960366,7.3961,135.21,135.16,7.3985]
[1718891961159,27.62,135.24,135.09,28.513]
[1718891961359,7.3988,135.16,135.11,7.401]
[1718891961548,7.3988,135.16,135.12,7.4007]
[1718891961746,18.49,135.21,135.13,7.4001]
[1718891961964,18.49,135.21,135.09,47.0181]
[1718891961965,7.3971,135.19,135.12,22.23]
[1718891962274,7.3978,135.18,135.13,7.4001]
[1718891962584,7.3983,135.17,135.12,7.4007]
[1718891963080,7.3983,135.17,135.13,8.19322763]
[1718891963251,7.3983,135.17,135.12,7.4006]
[1718891963571,7.3983,135.17,135.13,0.79489404]
[1718891963775,7.3972,135.19,135.14,7.3993]
[1718891964072,7.3968,135.2,135.15,7.3991]
[1718891964449,18.4887,135.22,135.16,7.3984]
[1718891964649,7.3967,135.2,135.15,6.0003]
[1718891965086,7.3965,135.2,135.15,6.0003]
[1718891965369,7.3959,135.21,135.17,7.398]